[Event "Late-Titled-Tuesday-Blitz-March-19-2024"]
[Site "Chess.com"]
[Date "2024.03.19"]
[Round "1"]
[White "GotCheeseCheckers"]
[Black "ViIIagra"]
[Result "0-1"]
[WhiteElo "2525"]
[BlackElo "2932"]
[TimeControl "180+1"]
[EndTime "14:02:09 PDT"]
[Termination "ViIIagra won by resignation"]

1. e4 {[%clk 0:03:00.9]} 1... d6 {[%clk 0:02:57.9]} 2. Nf3 {[%clk 0:02:59.9]}
2... Nf6 {[%clk 0:02:57.8]} 3. Nc3 {[%clk 0:02:57.2]} 3... Nbd7 {[%clk
0:02:57.2]} 4. Bc4 {[%clk 0:02:56.7]} 4... Nb6 {[%clk 0:02:49.5]} 5. Bb3 {[%clk
0:02:56.4]} 5... c5 {[%clk 0:02:46.8]} 6. d3 {[%clk 0:02:53.3]} 6... g6 {[%clk
0:02:45.4]} 7. h3 {[%clk 0:02:50.9]} 7... Bg7 {[%clk 0:02:45.6]} 8. e5 {[%clk
0:02:41.9]} 8... dxe5 {[%clk 0:02:46.5]} 9. Nxe5 {[%clk 0:02:41.1]} 9... O-O
{[%clk 0:02:47.1]} 10. Be3 {[%clk 0:02:41.3]} 10... Nfd5 {[%clk 0:02:42.3]} 11.
d4 {[%clk 0:02:28.1]} 11... Nxe3 {[%clk 0:02:19.8]} 12. fxe3 {[%clk 0:02:27.6]}
12... Bxe5 {[%clk 0:02:10.9]} 13. dxe5 {[%clk 0:02:22.6]} 13... c4 {[%clk
0:02:11.5]} 0-1

[Event "Late-Titled-Tuesday-Blitz-March-19-2024"]
[Site "Chess.com"]
[Date "2024.03.19"]
[Round "1"]
[White "Kiborg95"]
[Black "PapaieDudu"]
[Result "1-0"]
[WhiteElo "2765"]
[BlackElo "2455"]
[TimeControl "180+1"]
[EndTime "14:02:31 PDT"]
[Termination "Kiborg95 won by resignation"]

1. e4 {[%clk 0:02:59.8]} 1... c5 {[%clk 0:02:59.6]} 2. Nc3 {[%clk 0:02:54.8]}
2... a6 {[%clk 0:02:58.6]} 3. g3 {[%clk 0:02:54.6]} 3... e6 {[%clk 0:02:57.8]}
4. Bg2 {[%clk 0:02:54.7]} 4... Ne7 {[%clk 0:02:56.7]} 5. Nge2 {[%clk 0:02:53.9]}
5... d5 {[%clk 0:02:56.8]} 6. exd5 {[%clk 0:02:52.9]} 6... exd5 {[%clk
0:02:56.4]} 7. d4 {[%clk 0:02:52.9]} 7... Nbc6 {[%clk 0:02:53.9]} 8. O-O {[%clk
0:02:48.3]} 8... Bg4 {[%clk 0:02:50.6]} 9. h3 {[%clk 0:02:44.5]} 9... Bh5 {[%clk
0:02:48.4]} 10. g4 {[%clk 0:02:36.2]} 10... Bg6 {[%clk 0:02:48.4]} 11. Be3
{[%clk 0:02:36.9]} 11... h5 {[%clk 0:02:31.6]} 12. g5 {[%clk 0:02:27]} 12...
cxd4 {[%clk 0:02:24.8]} 13. Nxd4 {[%clk 0:02:26.3]} 13... Qd7 {[%clk 0:02:24.8]}
14. Nxc6 {[%clk 0:02:10.1]} 14... bxc6 {[%clk 0:02:22.8]} 15. Re1 {[%clk
0:02:09.3]} 15... O-O-O {[%clk 0:02:18.2]} 16. Na4 {[%clk 0:02:03.7]} 16... Nf5
{[%clk 0:02:15.4]} 17. Nb6+ {[%clk 0:02:03.5]} 1-0

[Event "Late-Titled-Tuesday-Blitz-March-19-2024"]
[Site "Chess.com"]
[Date "2024.03.19"]
[Round "1"]
[White "Zeitnot593"]
[Black "Bilan_Danila"]
[Result "0-1"]
[WhiteElo "2275"]
[BlackElo "2630"]
[TimeControl "180+1"]
[EndTime "14:02:36 PDT"]
[Termination "Bilan_Danila won by resignation"]

1. d4 {[%clk 0:02:58.9]} 1... d5 {[%clk 0:02:58.2]} 2. e3 {[%clk 0:02:58.6]}
2... c5 {[%clk 0:02:57.2]} 3. Nf3 {[%clk 0:02:58.8]} 3... Nf6 {[%clk 0:02:55.7]}
4. Bd3 {[%clk 0:02:57.3]} 4... Nc6 {[%clk 0:02:50.7]} 5. a3 {[%clk 0:02:56.9]}
5... c4 {[%clk 0:02:45.2]} 6. Be2 {[%clk 0:02:56.8]} 6... Bf5 {[%clk 0:02:45.7]}
7. O-O {[%clk 0:02:52.8]} 7... h6 {[%clk 0:02:38.4]} 8. Nbd2 {[%clk 0:02:52.7]}
8... e6 {[%clk 0:02:36.6]} 9. Ne5 {[%clk 0:02:50.4]} 9... Nxe5 {[%clk
0:02:18.8]} 10. dxe5 {[%clk 0:02:49.3]} 10... Nd7 {[%clk 0:02:19.5]} 11. Nf3
{[%clk 0:02:49.5]} 11... Qc7 {[%clk 0:02:10.3]} 12. Qd4 {[%clk 0:02:49]} 12...
Bxc2 {[%clk 0:01:55.7]} 13. Bd2 {[%clk 0:02:47.4]} 13... Nc5 {[%clk 0:01:46.3]}
14. Qg4 {[%clk 0:02:39.9]} 14... Bf5 {[%clk 0:01:44.4]} 15. Qg3 {[%clk
0:02:39.3]} 15... Ne4 {[%clk 0:01:44.2]} 16. Qf4 {[%clk 0:02:36.4]} 16... g5
{[%clk 0:01:43]} 0-1

[Event "Late-Titled-Tuesday-Blitz-March-19-2024"]
[Site "Chess.com"]
[Date "2024.03.19"]
[Round "1"]
[White "Zampronha1971"]
[Black "aistrel"]
[Result "0-1"]
[WhiteElo "2297"]
[BlackElo "2642"]
[TimeControl "180+1"]
[EndTime "14:03:01 PDT"]
[Termination "aistrel won by resignation"]

1. e4 {[%clk 0:03:00.9]} 1... c6 {[%clk 0:02:59.1]} 2. d4 {[%clk 0:03:00.1]}
2... d5 {[%clk 0:02:59.1]} 3. e5 {[%clk 0:02:59]} 3... Bf5 {[%clk 0:02:58.5]} 4.
Nc3 {[%clk 0:02:57.6]} 4... e6 {[%clk 0:02:58.4]} 5. g4 {[%clk 0:02:57.9]} 5...
Bg6 {[%clk 0:02:58.9]} 6. Nge2 {[%clk 0:02:58]} 6... c5 {[%clk 0:02:59.1]} 7. h4
{[%clk 0:02:55.3]} 7... h5 {[%clk 0:02:59.6]} 8. Nf4 {[%clk 0:02:54.4]} 8... Bh7
{[%clk 0:03:00.2]} 9. Nxh5 {[%clk 0:02:52.1]} 9... cxd4 {[%clk 0:02:59.9]} 10.
Nb5 {[%clk 0:02:49.4]} 10... Nc6 {[%clk 0:02:56.4]} 11. Nxd4 {[%clk 0:02:43.9]}
11... a6 {[%clk 0:02:47.3]} 12. Nxc6 {[%clk 0:02:39.7]} 12... bxc6 {[%clk
0:02:48.2]} 13. c4 {[%clk 0:02:38.4]} 13... Bb4+ {[%clk 0:02:37.4]} 14. Bd2
{[%clk 0:02:37.4]} 14... Qa5 {[%clk 0:02:26.2]} 15. Nxg7+ {[%clk 0:02:32.9]}
15... Kf8 {[%clk 0:02:26.7]} 16. Nh5 {[%clk 0:02:33.3]} 16... Ne7 {[%clk
0:02:27.2]} 17. Nf6 {[%clk 0:02:30.7]} 17... Be4 {[%clk 0:02:21.2]} 18. f3
{[%clk 0:02:25.2]} 18... Bxf3 {[%clk 0:02:07.5]} 19. Bxb4 {[%clk 0:02:19.7]}
19... Qxb4+ {[%clk 0:02:06.3]} 20. Qd2 {[%clk 0:02:19.2]} 20... Qxd2+ {[%clk
0:02:05.3]} 21. Kxd2 {[%clk 0:02:18.9]} 21... Bxh1 {[%clk 0:02:06.2]} 22. Be2
{[%clk 0:01:59.4]} 22... Rxh4 {[%clk 0:02:02.2]} 0-1

[Event "Late-Titled-Tuesday-Blitz-March-19-2024"]
[Site "Chess.com"]
[Date "2024.03.19"]
[Round "1"]
[White "balack95"]
[Black "Rodalquilar"]
[Result "0-1"]
[WhiteElo "2464"]
[BlackElo "2786"]
[TimeControl "180+1"]
[EndTime "14:03:17 PDT"]
[Termination "Rodalquilar won by resignation"]

1. d4 {[%clk 0:03:00.9]} 1... d5 {[%clk 0:03:00]} 2. c4 {[%clk 0:03:01.1]} 2...
e6 {[%clk 0:03:00.6]} 3. Nc3 {[%clk 0:03:01.2]} 3... a6 {[%clk 0:03:00.8]} 4.
cxd5 {[%clk 0:03:00.6]} 4... exd5 {[%clk 0:03:01.7]} 5. Bf4 {[%clk 0:03:00.6]}
5... Nf6 {[%clk 0:03:02.2]} 6. Nf3 {[%clk 0:03:01.1]} 6... Bd6 {[%clk
0:03:02.6]} 7. Bg3 {[%clk 0:03:01.1]} 7... O-O {[%clk 0:03:02.1]} 8. e3 {[%clk
0:03:01.7]} 8... Bxg3 {[%clk 0:03:01.9]} 9. hxg3 {[%clk 0:03:01.1]} 9... Re8
{[%clk 0:03:00.1]} 10. Qc2 {[%clk 0:03:01.1]} 10... h6 {[%clk 0:02:58.2]} 11.
Bd3 {[%clk 0:03:00.3]} 11... Nc6 {[%clk 0:02:51.5]} 12. a3 {[%clk 0:02:59.9]}
12... Qe7 {[%clk 0:02:48.5]} 13. O-O {[%clk 0:02:58.8]} 13... Bg4 {[%clk
0:02:46.4]} 14. b4 {[%clk 0:02:58.1]} 14... Rad8 {[%clk 0:02:46.4]} 15. b5
{[%clk 0:02:56.6]} 15... axb5 {[%clk 0:02:46.2]} 16. Nxb5 {[%clk 0:02:55.2]}
16... Ne4 {[%clk 0:02:44.5]} 17. Bxe4 {[%clk 0:02:40.6]} 17... dxe4 {[%clk
0:02:42]} 18. Ne5 {[%clk 0:02:38.1]} 18... Nxe5 {[%clk 0:02:38.3]} 19. dxe5
{[%clk 0:02:39]} 19... Qxe5 {[%clk 0:02:32.4]} 20. Nxc7 {[%clk 0:02:09.3]} 20...
Rc8 {[%clk 0:02:29.3]} 21. Rac1 {[%clk 0:02:09.7]} 21... Re7 {[%clk 0:02:26.6]}
22. Nd5 {[%clk 0:02:09.6]} 22... Qxd5 {[%clk 0:02:19.8]} 23. Qxc8+ {[%clk
0:02:09.8]} 23... Bxc8 {[%clk 0:02:19.5]} 24. Rxc8+ {[%clk 0:02:10.7]} 24... Kh7
{[%clk 0:02:20]} 25. Rc3 {[%clk 0:02:09.8]} 25... h5 {[%clk 0:02:16.5]} 26. Rfc1
{[%clk 0:02:08.7]} 26... Qg5 {[%clk 0:02:13.3]} 27. Rc5 {[%clk 0:02:07.3]} 27...
Re5 {[%clk 0:02:12.3]} 28. Rc7 {[%clk 0:02:05.7]} 28... h4 {[%clk 0:02:03.8]}
29. gxh4 {[%clk 0:02:04.4]} 29... Qxh4 {[%clk 0:02:04.7]} 30. Rxb7 {[%clk
0:02:02.5]} 30... Rh5 {[%clk 0:02:04.3]} 0-1

[Event "Late-Titled-Tuesday-Blitz-March-19-2024"]
[Site "Chess.com"]
[Date "2024.03.19"]
[Round "1"]
[White "WindWhistler11"]
[Black "Marcan2b"]
[Result "0-1"]
[WhiteElo "2520"]
[BlackElo "2915"]
[TimeControl "180+1"]
[EndTime "14:03:35 PDT"]
[Termination "Marcan2b won by resignation"]

1. Nf3 {[%clk 0:02:18]} 1... d6 {[%clk 0:02:58.8]} 2. g3 {[%clk 0:02:18.9]} 2...
Nf6 {[%clk 0:02:56.5]} 3. d3 {[%clk 0:02:19.8]} 3... g6 {[%clk 0:02:56.8]} 4.
Nbd2 {[%clk 0:02:20.6]} 4... Bg7 {[%clk 0:02:57.6]} 5. Bg2 {[%clk 0:02:18.3]}
5... O-O {[%clk 0:02:58.5]} 6. O-O {[%clk 0:02:14.5]} 6... c5 {[%clk 0:02:59.4]}
7. c4 {[%clk 0:02:15]} 7... Nc6 {[%clk 0:03:00.3]} 8. a3 {[%clk 0:02:15.7]} 8...
Rb8 {[%clk 0:02:59.3]} 9. Rb1 {[%clk 0:02:16.6]} 9... b5 {[%clk 0:02:57.9]} 10.
cxb5 {[%clk 0:02:13.3]} 10... Rxb5 {[%clk 0:02:58.8]} 11. b3 {[%clk 0:02:12.3]}
11... Bg4 {[%clk 0:02:53.9]} 12. h3 {[%clk 0:02:00.2]} 12... Bd7 {[%clk
0:02:52.8]} 13. e3 {[%clk 0:01:55.9]} 13... Rb8 {[%clk 0:02:53.3]} 14. Qc2
{[%clk 0:01:56.3]} 14... e5 {[%clk 0:02:52.9]} 15. Nc4 {[%clk 0:01:56.5]} 15...
Be6 {[%clk 0:02:52.6]} 16. Bd2 {[%clk 0:01:53.5]} 16... Qd7 {[%clk 0:02:50.5]}
17. Rfd1 {[%clk 0:01:52.1]} 17... Bxh3 {[%clk 0:02:49.3]} 18. Bxh3 {[%clk
0:01:51.8]} 18... Qxh3 {[%clk 0:02:50.2]} 19. Nxd6 {[%clk 0:01:51.7]} 19... Ng4
{[%clk 0:02:50.2]} 20. Ne4 {[%clk 0:01:49.4]} 20... h6 {[%clk 0:02:45.2]} 21.
Qxc5 {[%clk 0:01:44.9]} 21... Rbc8 {[%clk 0:02:44.9]} 22. Qd5 {[%clk 0:01:41.9]}
22... Rfd8 {[%clk 0:02:40.4]} 23. Nd6 {[%clk 0:01:41.1]} 23... Rxd6 {[%clk
0:02:33.8]} 24. Qxd6 {[%clk 0:01:40.3]} 24... e4 {[%clk 0:02:34.7]} 25. dxe4
{[%clk 0:01:32.5]} 25... Nce5 {[%clk 0:02:32.6]} 0-1

[Event "Late-Titled-Tuesday-Blitz-March-19-2024"]
[Site "Chess.com"]
[Date "2024.03.19"]
[Round "1"]
[White "Joachim100x"]
[Black "Adar_07"]
[Result "0-1"]
[WhiteElo "2498"]
[BlackElo "2855"]
[TimeControl "180+1"]
[EndTime "14:03:38 PDT"]
[Termination "Adar_07 won by resignation"]

1. e4 {[%clk 0:03:00.9]} 1... e6 {[%clk 0:02:59.3]} 2. b3 {[%clk 0:03:00.7]}
2... d5 {[%clk 0:03:00.2]} 3. Bb2 {[%clk 0:03:00.2]} 3... dxe4 {[%clk 0:03:00]}
4. Nc3 {[%clk 0:03:00.5]} 4... Nf6 {[%clk 0:03:00.4]} 5. Qe2 {[%clk 0:03:00.7]}
5... Nc6 {[%clk 0:03:00.8]} 6. Nxe4 {[%clk 0:03:00.9]} 6... Nd4 {[%clk
0:03:01.4]} 7. Nxf6+ {[%clk 0:03:00.6]} 7... gxf6 {[%clk 0:02:59.9]} 8. Qd3
{[%clk 0:03:00]} 8... e5 {[%clk 0:02:58.7]} 9. Bxd4 {[%clk 0:02:57.4]} 9... Qxd4
{[%clk 0:02:49.9]} 10. Qxd4 {[%clk 0:02:57]} 10... exd4 {[%clk 0:02:50.8]} 11.
Nf3 {[%clk 0:02:57.5]} 11... c5 {[%clk 0:02:49.8]} 12. Bc4 {[%clk 0:02:57.2]}
12... Be6 {[%clk 0:02:48.4]} 13. O-O-O {[%clk 0:02:49.3]} 13... Rg8 {[%clk
0:02:43.5]} 14. Bxe6 {[%clk 0:02:27.5]} 14... fxe6 {[%clk 0:02:41.6]} 15. g3
{[%clk 0:02:28.4]} 15... Kd7 {[%clk 0:02:36.4]} 16. d3 {[%clk 0:02:28.1]} 16...
a5 {[%clk 0:02:34.4]} 17. Rhe1 {[%clk 0:02:27.6]} 17... a4 {[%clk 0:02:33.8]}
18. Kb2 {[%clk 0:02:27.6]} 18... Bd6 {[%clk 0:02:24.9]} 19. c3 {[%clk
0:02:20.5]} 19... axb3 {[%clk 0:02:22.6]} 20. axb3 {[%clk 0:02:19.9]} 20...
dxc3+ {[%clk 0:02:22.3]} 21. Kxc3 {[%clk 0:02:19.8]} 21... Ra2 {[%clk
0:02:22.3]} 22. Rd2 {[%clk 0:02:16.8]} 22... Rga8 {[%clk 0:02:20.7]} 23. Ree2
{[%clk 0:02:09.5]} 23... Ra1 {[%clk 0:02:20.5]} 24. Re1 {[%clk 0:02:08.7]} 24...
Rxe1 {[%clk 0:02:16.4]} 25. Nxe1 {[%clk 0:02:08.3]} 25... Be5+ {[%clk
0:02:16.3]} 26. Kc2 {[%clk 0:01:48.5]} 26... Ra2+ {[%clk 0:02:15.5]} 27. Kd1
{[%clk 0:01:48.2]} 27... Ra1+ {[%clk 0:02:16.4]} 28. Ke2 {[%clk 0:01:48]} 28...
Bc3 {[%clk 0:02:15.6]} 29. Rd1 {[%clk 0:01:47.4]} 29... Ra2+ {[%clk 0:02:10.4]}
30. Kf1 {[%clk 0:01:43.8]} 30... Bd4 {[%clk 0:02:10.2]} 0-1

[Event "Late-Titled-Tuesday-Blitz-March-19-2024"]
[Site "Chess.com"]
[Date "2024.03.19"]
[Round "1"]
[White "DanielNaroditsky"]
[Black "korkmaz16"]
[Result "1-0"]
[WhiteElo "3165"]
[BlackElo "2567"]
[TimeControl "180+1"]
[EndTime "14:03:44 PDT"]
[Termination "DanielNaroditsky won by resignation"]

1. e4 {[%clk 0:03:00.1]} 1... e5 {[%clk 0:02:58]} 2. Nf3 {[%clk 0:02:53.5]} 2...
Nc6 {[%clk 0:02:57.7]} 3. Nc3 {[%clk 0:02:45.8]} 3... Nf6 {[%clk 0:02:55.2]} 4.
g3 {[%clk 0:02:46.2]} 4... d5 {[%clk 0:02:52.1]} 5. exd5 {[%clk 0:02:47.1]} 5...
Nxd5 {[%clk 0:02:51.9]} 6. Bg2 {[%clk 0:02:46.1]} 6... Nxc3 {[%clk 0:02:44.3]}
7. bxc3 {[%clk 0:02:47]} 7... Bd6 {[%clk 0:02:42]} 8. O-O {[%clk 0:02:46.9]}
8... O-O {[%clk 0:02:41.6]} 9. d4 {[%clk 0:02:47.7]} 9... Re8 {[%clk 0:02:31.3]}
10. Re1 {[%clk 0:02:44.4]} 10... Bg4 {[%clk 0:02:30.3]} 11. h3 {[%clk
0:02:42.8]} 11... Bh5 {[%clk 0:02:29.9]} 12. g4 {[%clk 0:02:28.1]} 12... Bg6
{[%clk 0:02:29.3]} 13. Be3 {[%clk 0:02:28]} 13... h6 {[%clk 0:02:03]} 14. Nd2
{[%clk 0:02:25.4]} 14... exd4 {[%clk 0:02:01.2]} 15. cxd4 {[%clk 0:02:25]} 15...
Qf6 {[%clk 0:01:54.9]} 16. c3 {[%clk 0:02:20.6]} 16... Bf4 {[%clk 0:01:51.2]}
17. Qf3 {[%clk 0:02:16.7]} 17... Bxe3 {[%clk 0:01:50.8]} 18. Qxf6 {[%clk
0:02:16.3]} 18... gxf6 {[%clk 0:01:46.3]} 19. fxe3 {[%clk 0:02:16.7]} 19... Na5
{[%clk 0:01:45.5]} 20. e4 {[%clk 0:02:11]} 20... Rad8 {[%clk 0:01:38.3]} 21. Rf1
{[%clk 0:01:55.9]} 21... Kg7 {[%clk 0:01:37.1]} 22. h4 {[%clk 0:01:52.4]} 22...
h5 {[%clk 0:01:36.8]} 23. gxh5 {[%clk 0:01:53]} 23... Bxh5 {[%clk 0:01:36.8]}
24. Rf5 {[%clk 0:01:53.8]} 24... Bg6 {[%clk 0:01:36.4]} 25. Rxa5 {[%clk
0:01:53.3]} 1-0

[Event "Late-Titled-Tuesday-Blitz-March-19-2024"]
[Site "Chess.com"]
[Date "2024.03.19"]
[Round "1"]
[White "KuzubovYuriy"]
[Black "Pawngobblerx2000"]
[Result "1-0"]
[WhiteElo "2899"]
[BlackElo "2518"]
[TimeControl "180+1"]
[EndTime "14:03:48 PDT"]
[Termination "KuzubovYuriy won by resignation"]

1. d4 {[%clk 0:03:00.9]} 1... d5 {[%clk 0:02:57.4]} 2. c4 {[%clk 0:03:01.5]}
2... c6 {[%clk 0:02:57.3]} 3. Nf3 {[%clk 0:03:00.6]} 3... Nf6 {[%clk 0:02:57.7]}
4. Nc3 {[%clk 0:03:01.2]} 4... e6 {[%clk 0:02:58]} 5. e3 {[%clk 0:02:59.8]} 5...
Nbd7 {[%clk 0:02:57.7]} 6. Be2 {[%clk 0:02:58.5]} 6... dxc4 {[%clk 0:02:57.5]}
7. a4 {[%clk 0:02:58.3]} 7... Bb4 {[%clk 0:02:53.1]} 8. Bxc4 {[%clk 0:02:56.1]}
8... O-O {[%clk 0:02:51.4]} 9. O-O {[%clk 0:02:55.7]} 9... Qe7 {[%clk
0:02:48.6]} 10. Qb3 {[%clk 0:02:38.8]} 10... a5 {[%clk 0:02:45.6]} 11. e4 {[%clk
0:02:06.4]} 11... Bxc3 {[%clk 0:02:44.9]} 12. bxc3 {[%clk 0:02:05.8]} 12... Nxe4
{[%clk 0:02:44.5]} 13. Re1 {[%clk 0:02:01.9]} 13... Nef6 {[%clk 0:02:37.4]} 14.
Ba3 {[%clk 0:01:56.9]} 14... c5 {[%clk 0:02:35.4]} 15. Rad1 {[%clk 0:01:55.7]}
15... Re8 {[%clk 0:02:24.3]} 16. h3 {[%clk 0:01:36.3]} 16... Qf8 {[%clk
0:02:15.1]} 17. dxc5 {[%clk 0:01:24.6]} 17... Nxc5 {[%clk 0:02:13.4]} 18. Qb5
{[%clk 0:01:23.2]} 18... Nfd7 {[%clk 0:02:03.2]} 19. Ne5 {[%clk 0:01:23.2]}
19... Nxe5 {[%clk 0:01:46.2]} 20. Rxe5 {[%clk 0:01:22.3]} 1-0

[Event "Late-Titled-Tuesday-Blitz-March-19-2024"]
[Site "Chess.com"]
[Date "2024.03.19"]
[Round "1"]
[White "WilsonPalencia21"]
[Black "gorgeous1083"]
[Result "1-0"]
[WhiteElo "2583"]
[BlackElo "2059"]
[TimeControl "180+1"]
[EndTime "14:03:50 PDT"]
[Termination "WilsonPalencia21 won by resignation"]

1. d4 {[%clk 0:02:56.6]} 1... Nf6 {[%clk 0:02:59.3]} 2. c4 {[%clk 0:02:56]} 2...
e6 {[%clk 0:02:59.4]} 3. Nf3 {[%clk 0:02:56.4]} 3... d5 {[%clk 0:02:58.3]} 4.
Nc3 {[%clk 0:02:56.2]} 4... Be7 {[%clk 0:02:57]} 5. Bg5 {[%clk 0:02:56.1]} 5...
O-O {[%clk 0:02:57.2]} 6. e3 {[%clk 0:02:53.3]} 6... c6 {[%clk 0:02:57.3]} 7.
Qc2 {[%clk 0:02:49]} 7... Nbd7 {[%clk 0:02:56.4]} 8. O-O-O {[%clk 0:02:48.5]}
8... h6 {[%clk 0:02:41.1]} 9. h4 {[%clk 0:02:47.9]} 9... Re8 {[%clk 0:02:33.9]}
10. Bxf6 {[%clk 0:02:45.8]} 10... Nxf6 {[%clk 0:02:31.2]} 11. Ne5 {[%clk
0:02:44.1]} 11... Bd7 {[%clk 0:02:14]} 12. g4 {[%clk 0:02:43.8]} 12... Nh7
{[%clk 0:02:03.2]} 13. Bd3 {[%clk 0:02:38.3]} 13... Nf8 {[%clk 0:01:59.2]} 14.
g5 {[%clk 0:02:35.9]} 14... h5 {[%clk 0:01:55.8]} 15. g6 {[%clk 0:02:31.1]}
15... f6 {[%clk 0:01:44.6]} 16. Nf7 {[%clk 0:02:28.9]} 16... Qc7 {[%clk
0:01:32.5]} 17. Qe2 {[%clk 0:02:28.5]} 17... dxc4 {[%clk 0:01:12.2]} 18. Qxh5
{[%clk 0:02:28]} 1-0

[Event "Late-Titled-Tuesday-Blitz-March-19-2024"]
[Site "Chess.com"]
[Date "2024.03.19"]
[Round "1"]
[White "BilicVladimir"]
[Black "Bkmzzzzz"]
[Result "1-0"]
[WhiteElo "2705"]
[BlackElo "2394"]
[TimeControl "180+1"]
[EndTime "14:04:02 PDT"]
[Termination "BilicVladimir won by resignation"]

1. e4 {[%clk 0:03:00.9]} 1... d6 {[%clk 0:03:00.1]} 2. d4 {[%clk 0:03:00.5]}
2... Nf6 {[%clk 0:03:00]} 3. Bd3 {[%clk 0:03:01.1]} 3... e5 {[%clk 0:03:00.4]}
4. c3 {[%clk 0:03:01.7]} 4... Be7 {[%clk 0:03:00.1]} 5. Nf3 {[%clk 0:03:02.3]}
5... Nbd7 {[%clk 0:02:59.8]} 6. Nbd2 {[%clk 0:03:02.3]} 6... O-O {[%clk
0:02:59.1]} 7. O-O {[%clk 0:03:02.4]} 7... c6 {[%clk 0:02:59.6]} 8. a4 {[%clk
0:03:02.6]} 8... a5 {[%clk 0:02:55.1]} 9. Re1 {[%clk 0:03:03.1]} 9... Qc7 {[%clk
0:02:53.9]} 10. Qc2 {[%clk 0:03:02.7]} 10... Re8 {[%clk 0:02:49.3]} 11. b3
{[%clk 0:03:02.5]} 11... b6 {[%clk 0:02:41.3]} 12. Bb2 {[%clk 0:03:02.1]} 12...
Bb7 {[%clk 0:02:39.8]} 13. Rad1 {[%clk 0:03:01]} 13... Bf8 {[%clk 0:02:38.3]}
14. h3 {[%clk 0:03:01]} 14... Rad8 {[%clk 0:02:30.5]} 15. Nf1 {[%clk 0:03:00.6]}
15... h6 {[%clk 0:02:28.3]} 16. Ng3 {[%clk 0:03:00.5]} 16... g6 {[%clk 0:02:02]}
17. Bc1 {[%clk 0:02:52.1]} 17... Bg7 {[%clk 0:02:00.2]} 18. Bd2 {[%clk
0:02:46.8]} 18... d5 {[%clk 0:01:55]} 19. dxe5 {[%clk 0:02:44.7]} 19... Nxe5
{[%clk 0:01:54.9]} 20. Nxe5 {[%clk 0:02:43.7]} 20... Qxe5 {[%clk 0:01:50.8]} 21.
f4 {[%clk 0:02:42.5]} 21... Qc7 {[%clk 0:01:45.5]} 22. e5 {[%clk 0:02:42.5]}
22... Nd7 {[%clk 0:01:36.5]} 23. e6 {[%clk 0:02:41.4]} 23... Nf8 {[%clk
0:01:28.8]} 24. exf7+ {[%clk 0:02:38.6]} 24... Qxf7 {[%clk 0:01:29.7]} 25. Rxe8
{[%clk 0:02:30.8]} 25... Rxe8 {[%clk 0:01:29.5]} 26. Rf1 {[%clk 0:02:30.8]}
26... Nd7 {[%clk 0:00:56]} 27. Bxg6 {[%clk 0:02:25.3]} 27... Qf6 {[%clk
0:00:50.8]} 28. Bxe8 {[%clk 0:02:22.5]} 1-0

[Event "Late-Titled-Tuesday-Blitz-March-19-2024"]
[Site "Chess.com"]
[Date "2024.03.19"]
[Round "1"]
[White "AndresDelgado77"]
[Black "Alexei_Gubajdullin"]
[Result "0-1"]
[WhiteElo "2340"]
[BlackElo "2658"]
[TimeControl "180+1"]
[EndTime "14:04:12 PDT"]
[Termination "Alexei_Gubajdullin won by checkmate"]

1. e4 {[%clk 0:03:00]} 1... g6 {[%clk 0:02:58]} 2. d4 {[%clk 0:02:57.5]} 2...
Bg7 {[%clk 0:02:54.4]} 3. Nf3 {[%clk 0:02:57.9]} 3... d6 {[%clk 0:02:50.7]} 4.
Bc4 {[%clk 0:02:53.2]} 4... a6 {[%clk 0:02:51.6]} 5. O-O {[%clk 0:02:44.7]} 5...
e6 {[%clk 0:02:49.8]} 6. Bb3 {[%clk 0:02:32.8]} 6... Ne7 {[%clk 0:02:48.2]} 7.
h4 {[%clk 0:02:30.2]} 7... h6 {[%clk 0:02:47.2]} 8. Be3 {[%clk 0:02:22.3]} 8...
b6 {[%clk 0:02:45]} 9. e5 {[%clk 0:02:18.4]} 9... Bb7 {[%clk 0:02:40]} 10. exd6
{[%clk 0:02:18.1]} 10... cxd6 {[%clk 0:02:39.4]} 11. c4 {[%clk 0:02:16.7]} 11...
Nd7 {[%clk 0:02:37.2]} 12. Nc3 {[%clk 0:02:16.8]} 12... O-O {[%clk 0:02:34.8]}
13. Qd2 {[%clk 0:02:16]} 13... Nf5 {[%clk 0:02:34.3]} 14. g3 {[%clk 0:02:13.4]}
14... Bxf3 {[%clk 0:02:26.2]} 15. d5 {[%clk 0:00:38.3]} 15... exd5 {[%clk
0:02:17.2]} 16. cxd5 {[%clk 0:00:37.6]} 16... Ne5 {[%clk 0:02:16.8]} 17. g4
{[%clk 0:00:29.3]} 17... Qxh4 {[%clk 0:02:13.4]} 18. gxf5 {[%clk 0:00:30.2]}
18... Qh1# {[%clk 0:02:11.9]} 0-1

[Event "Late-Titled-Tuesday-Blitz-March-19-2024"]
[Site "Chess.com"]
[Date "2024.03.19"]
[Round "1"]
[White "jcibarra"]
[Black "DeArron_Fox"]
[Result "1-0"]
[WhiteElo "2930"]
[BlackElo "2524"]
[TimeControl "180+1"]
[EndTime "14:04:19 PDT"]
[Termination "jcibarra won on time"]

1. e4 {[%clk 0:02:57.9]} 1... c5 {[%clk 0:02:58.1]} 2. Nf3 {[%clk 0:02:56.5]}
2... e6 {[%clk 0:02:57.3]} 3. d4 {[%clk 0:02:54.3]} 3... cxd4 {[%clk 0:02:58.2]}
4. Nxd4 {[%clk 0:02:54.9]} 4... a6 {[%clk 0:02:47.1]} 5. c4 {[%clk 0:02:54.7]}
5... Nf6 {[%clk 0:02:43.9]} 6. Nc3 {[%clk 0:02:54.4]} 6... Bb4 {[%clk
0:02:42.5]} 7. Qc2 {[%clk 0:02:53.8]} 7... Qc7 {[%clk 0:02:10]} 8. a3 {[%clk
0:02:53.5]} 8... Bc5 {[%clk 0:01:31.6]} 9. Nb3 {[%clk 0:02:52.1]} 9... Be7
{[%clk 0:01:31]} 10. c5 {[%clk 0:02:48.3]} 10... O-O {[%clk 0:00:48.7]} 11. Be2
{[%clk 0:02:45.7]} 11... Bxc5 {[%clk 0:00:25.1]} 12. Nxc5 {[%clk 0:02:45]} 12...
Qxc5 {[%clk 0:00:26]} 13. Be3 {[%clk 0:02:44.7]} 13... Qc7 {[%clk 0:00:24]} 14.
Rc1 {[%clk 0:02:44.7]} 14... d6 {[%clk 0:00:12]} 15. O-O {[%clk 0:02:42.9]}
15... Nc6 {[%clk 0:00:08.9]} 16. Rfd1 {[%clk 0:02:42.2]} 16... Rd8 {[%clk
0:00:08.2]} 17. Bg5 {[%clk 0:02:39.7]} 17... Qe7 {[%clk 0:00:07]} 18. f4 {[%clk
0:02:36.7]} 18... h6 {[%clk 0:00:06.3]} 19. Bh4 {[%clk 0:02:37.2]} 19... Bd7
{[%clk 0:00:02.4]} 20. Qd2 {[%clk 0:02:35.6]} 20... Be8 {[%clk 0:00:01.6]} 21.
Qe3 {[%clk 0:02:36.3]} 1-0